bitfinex/quotes_ETHUSD_20251004
["timestamp","ask_amount","ask_price","bid_price","bid_amount"]
[1759561039069,0.4683,4507.4,4506.9,2.496]
[1759561040264,4.19,4507.5,4506.9,2.496]
[1759561040703,4.19,4507.5,4507.0,0.0221877]
[1759561040998,4.19,4507.5,4507.1,2.496]
[1759561041200,4.19,4507.5,4507.2,0.02218672]
[1759561041510,4.3032,4507.6,4507.3,2.496]
[1759561041713,4.192,4507.6,4507.4,0.02218573]
[1759561042407,4.192,4507.6,4507.3,2.496]
[1759561042999,6.4104895,4507.6,4507.3,2.496]
[1759561043201,2.21853694,4507.5,4507.3,2.496]
[1759561043604,6.41048751,4507.6,4507.3,2.496]
[1759561044071,4.192,4507.6,4507.3,2.496]
[1759561044608,4.192,4507.6,4507.4,0.02218573]
[1759561045101,4.192,4507.6,4507.3,2.496]
[1759561045277,2.21852468,4507.5,4507.3,2.496]
[1759561045890,6.41048798,4507.6,4507.3,2.496]
[1759561046207,4.192,4507.6,4507.4,0.02218573]
[1759561046617,4.192,4507.6,4507.3,2.496]
[1759561047878,4.192,4507.6,4507.4,0.02218573]
[1759561048482,4.192,4507.6,4507.3,2.496]
[1759561050027,6.41048123,4507.6,4507.3,2.496]
[1759561050572,4.6476,4507.6,4507.3,2.496]
[1759561050977,2.2185617,4507.5,4507.3,2.496]
[1759561051176,6.8660834,4507.6,4507.3,2.496]
[1759561053480,2.21853042,4507.5,4507.3,2.496]
[1759561054919,2.21856809,4507.5,4507.3,2.496]
[1759561056717,6.41048231,4507.6,4507.3,2.496]
[1759561057320,2.21852516,4507.5,4507.3,2.496]
[1759561058183,6.4104894,4507.6,4507.3,2.496]
[1759561058410,2.21853591,4507.5,4507.3,2.496]
[1759561058721,6.41047792,4507.6,4507.3,2.496]
[1759561058926,4.192,4507.6,4507.3,2.496]
[1759561059129,2.21852468,4507.5,4507.3,2.496]
[1759561060321,4.192,4507.6,4507.3,2.496]
[1759561060524,0.4556,4507.4,4507.3,2.496]
[1759561061221,6.41050455,4507.6,4507.3,2.496]
[1759561061443,2.21852468,4507.5,4507.3,2.496]
[1759561061741,6.41050455,4507.6,4507.3,2.496]
[1759561061742,6.86610455,4507.6,4507.3,2.496]
[1759561061916,2.2185739,4507.4,4507.3,2.496]
[1759561062307,2.2185739,4507.4,4507.3,2.497]
[1759561062907,4.6476,4507.6,4507.3,2.497]
[1759561063445,2.2185739,4507.4,4507.3,2.497]
[1759561064853,2.21853769,4507.5,4507.3,2.497]
[1759561069365,4.192,4507.6,4507.4,2.496]
[1759561069530,4.6476,4507.6,4507.4,2.496]
[1759561070036,4.192,4507.6,4507.4,2.496]
[1759561070437,2.21852468,4507.5,4507.4,2.496]
[1759561081084,2.22052468,4507.5,4507.4,2.496]
[1759561085596,2.8864359,4507.5,4507.4,2.496]
[1759561091939,0.66791122,4507.5,4507.4,2.496]
[1759561092835,2.8864359,4507.5,4507.4,2.496]
[1759561093438,0.66791122,4507.5,4507.4,2.496]
[1759561096845,2.8864359,4507.5,4507.4,2.496]
[1759561097343,0.66791122,4507.5,4507.4,2.496]
[1759561097928,2.88644013,4507.5,4507.4,2.496]
[1759561098233,2.99764013,4507.5,4507.4,2.496]
[1759561099444,7.18764013,4507.5,4507.4,2.496]
[1759561106560,2.2185739,4507.4,4507.3,0.001]
[1759561106751,2.2185739,4507.4,4507.3,2.497]
[1759561107274,2.88454573,4507.4,4507.3,2.497]
[1759561111178,7.07454573,4507.4,4507.3,2.497]
[1759561111484,7.07454573,4507.4,4507.3,2.9529]
[1759561114793,4.85597183,4507.4,4507.3,2.497]
[1759561115091,7.07454573,4507.4,4507.3,2.497]
[1759561121497,7.07454573,4507.4,4507.3,0.001]
[1759561121801,7.07454573,4507.4,4507.3,2.497]
[1759561128012,4.2850689,4507.4,4507.3,0.001]
[1759561134940,4.2870689,4507.4,4507.3,0.001]
[1759561136440,3.8275689,4507.4,4507.3,0.001]
[1759561143756,8.4601689,4507.4,4507.3,0.001]
[1759561145818,8.0175689,4507.4,4507.3,0.001]
[1759561150469,5.798995,4507.4,4507.3,0.001]
[1759561150634,5.798995,4507.4,4507.3,0.4391]
[1759561150635,4.96917183,4507.4,4507.3,0.4391]
[1759561150955,7.18774573,4507.4,4507.3,0.4391]
[1759561158046,7.18774573,4507.4,4507.3,0.001]
[1759561158641,7.18774573,4507.4,4507.3,0.4391]
[1759561158842,7.18774573,4507.4,4507.3,0.001]
[1759561160651,7.18774573,4507.4,4507.3,0.4346]
[1759561160864,7.18774573,4507.4,4507.3,0.001]
[1759561162554,7.18774573,4507.4,4507.3,2.497]
[1759561177605,8.12896881,4507.4,4507.3,0.001]
[1759561177768,8.12896881,4507.4,4507.3,2.497]
[1759561182196,7.18774573,4507.4,4507.3,2.497]
[1759561184501,7.18774573,4507.4,4507.3,2.9462]
[1759561184698,4.96917183,4507.4,4507.3,2.497]
[1759561184928,7.18774573,4507.4,4507.3,2.9462]
[1759561185363,7.18774573,4507.4,4507.3,2.497]
[1759561193329,7.18774573,4507.4,4507.3,2.9639]
[1759561196057,7.18774573,4507.4,4507.3,2.497]
[1759561199057,7.18774573,4507.4,4507.3,2.9639]
[1759561199425,0.77917183,4507.4,4507.3,2.9639]
[1759561199630,2.99774573,4507.4,4507.3,2.9639]
[1759561202163,0.77917183,4507.4,4507.3,2.9639]
[1759561202365,0.77917183,4507.4,4507.3,3.26029]
[1759561202366,0.002,4507.4,4507.3,3.26029]
[1759561204565,2.2205739,4507.4,4507.3,2.9639]
[1759561204760,2.2205739,4507.4,4507.3,0.4679]
[1759561205069,2.2205739,4507.4,4507.3,2.497]
[1759561206641,2.6514739,4507.4,4507.3,0.001]
[1759561206962,3.20566163,4507.4,4507.3,2.497]
[1759561212377,3.31686163,4507.4,4507.3,2.497]
[1759561214303,3.9829133,4507.4,4507.3,0.001]
[1759561214464,7.0165133,4507.4,4507.3,0.001]
[1759561219705,9.5125133,4507.4,4507.3,0.001]
[1759561223640,9.0816133,4507.4,4507.3,0.001]
[1759561224322,6.5856133,4507.4,4507.3,0.001]
[1759561224496,9.0816133,4507.4,4507.3,0.001]
[1759561224919,6.5856133,4507.4,4507.3,0.001]
[1759561225120,6.5856133,4507.4,4507.3,0.4405]
[1759561225836,3.5520133,4507.4,4507.3,0.4405]
[1759561227822,3.5520133,4507.4,4507.3,0.001]
[1759561228856,3.5520133,4507.4,4507.3,0.4735]
[1759561229234,0.77925167,4507.4,4507.3,0.4735]
[1759561229845,2.99782557,4507.4,4507.3,0.4735]
[1759561236458,2.99782557,4507.4,4507.3,0.001]
[1759561236782,2.99782557,4507.4,4507.3,0.4735]
[1759561240186,2.99782557,4507.4,4507.3,0.001]
[1759561243673,2.99782557,4507.4,4507.3,0.4735]
[1759561244784,2.99782557,4507.4,4507.3,0.001]
[1759561245912,2.99782557,4507.4,4507.3,0.4735]
[1759561247916,2.99782557,4507.4,4507.3,0.001]
[1759561248059,0.66805167,4507.4,4507.3,2.69212312]
[1759561248259,0.002,4507.7,4507.3,1.22668175]
[1759561248477,0.002,4507.7,4507.4,0.4725]
[1759561248804,0.002,4507.7,4507.5,2.51818524]
[1759561249300,0.002,4507.7,4507.6,0.4725]
[1759561258236,0.002,4507.7,4507.6,0.5837]
[1759561261134,0.002,4507.7,4507.6,0.544]
[1759561262838,0.002,4507.7,4507.6,0.8481]
[1759561270516,0.002,4507.7,4507.6,0.8491]
[1759561272907,0.002,4507.7,4507.6,0.4163]
[1759561273219,2.65362624,4507.7,4507.6,2.496]
[1759561274945,2.22042624,4507.7,4507.6,2.496]
[1759561275845,0.002,4507.7,4507.6,2.496]
[1759561276140,0.002,4507.7,4507.6,2.9288]
[1759561278113,2.22042624,4507.7,4507.6,2.496]
[1759561284767,2.64962624,4507.7,4507.6,2.496]
[1759561285367,2.22042624,4507.7,4507.6,2.496]
[1759561286985,0.002,4507.7,4507.6,2.496]
[1759561287386,2.22042624,4507.7,4507.6,2.496]
[1759561287799,2.22042624,4507.7,4507.6,0.001]
[1759561287952,3.21622317,4507.7,4507.6,0.001]
[1759561288154,3.21622317,4507.7,4507.6,2.496]
[1759561294433,2.33162624,4507.7,4507.6,2.496]
[1759561297197,2.80462624,4507.7,4507.6,2.496]
[1759561300539,2.80373886,4507.7,4507.6,2.496]
[1759561301289,6.52073886,4507.7,4507.6,2.496]
[1759561303439,0.00111262,4507.7,4507.6,2.496]
[1759561303640,0.002,4508.1,4507.6,3.42964697]
[1759561303859,0.002,4509.8,4507.8,0.6336]
[1759561303993,0.002,4509.8,4508.1,1.59079288]
[1759561304197,0.002,4509.8,4508.5,1.59079288]
[1759561304555,0.002,4509.8,4508.2,11.08005263]
[1759561304556,0.002,4509.8,4508.7,2.4]
[1759561304832,0.002,4509.8,4508.9,3.99079288]
[1759561305010,0.002,4509.8,4509.0,5.41128275]
[1759561305195,2.21749157,4509.6,4508.9,0.4334]
[1759561305448,2.21940548,4509.8,4509.0,2.496]
[1759561305598,2.21945525,4509.7,4509.0,2.496]
[1759561305804,2.21749157,4509.6,4509.0,2.496]
[1759561306002,2.21755054,4509.5,4509.0,2.496]
[1759561306235,0.002,4509.7,4508.7,0.4334]
[1759561306403,0.475,4509.7,4509.1,2.495]
[1759561306622,2.21768828,4509.2,4509.1,2.495]
[1759561322230,2.21768828,4509.2,4509.1,2.496]
[1759561322536,2.21968828,4509.2,4509.1,2.496]
[1759561328249,0.002,4509.7,4509.1,3.28027737]
[1759561328486,2.21896838,4510.7,4509.3,3.0336]
[1759561328619,2.21896838,4510.7,4510.0,2.2172949]
[1759561328620,0.002,4510.7,4510.0,2.2172949]
[1759561328827,0.002,4510.7,4510.2,2.217191]
[1759561329070,0.002,4510.7,4510.3,2.99951057]
[1759561329376,0.002,4510.7,4510.5,0.1112]
[1759561329578,2.21899224,4510.7,4510.5,2.6062]
[1759561329725,2.21895946,4510.7,4510.5,2.6062]
[1759561329931,2.21895946,4510.7,4510.5,3.062]
[1759561330145,2.21895946,4510.7,4510.5,0.567]
[1759561330146,2.21899995,4510.6,4510.5,0.567]
[1759561330323,2.21899995,4510.6,4510.5,0.1112]
[1759561330523,2.21899995,4510.6,4510.2,0.1112]
[1759561330524,2.21707412,4510.5,4510.2,0.1112]
[1759561330875,2.21714741,4510.3,4510.2,0.1112]
[1759561331264,2.21710143,4510.4,4510.2,2.6052]
[1759561331582,2.21710143,4510.4,4510.3,0.4558]
[1759561335288,2.21714741,4510.3,4510.2,2.6052]
[1759561336222,2.21710853,4510.4,4510.2,2.6052]
[1759561336511,2.21714741,4510.3,4510.2,2.6052]
[1759561339627,2.21914741,4510.3,4510.2,2.6052]
[1759561342488,2.21914741,4510.3,4510.2,3.0464]
[1759561342997,2.21914741,4510.3,4510.2,2.6052]
[1759561343998,2.21914741,4510.3,4510.2,0.1112]
[1759561344198,2.21731393,4510.0,4509.6,0.4412]
[1759561344402,2.21731393,4510.0,4509.9,0.1112]
[1759561346535,2.21731393,4510.0,4509.9,0.5524]
[1759561346900,2.21724879,4510.1,4509.9,0.5524]
[1759561347086,2.21720069,4510.2,4510.0,2.9352]
[1759561347286,0.002,4510.3,4510.0,2.9352]
[1759561347287,2.21724573,4510.1,4510.0,2.9352]
[1759561348741,2.2172949,4510.0,4509.9,0.1112]
[1759561348954,2.2172949,4510.0,4509.1,0.001]
[1759561348955,2.21764124,4509.3,4509.1,0.001]
[1759561349092,2.21764124,4509.3,4509.2,2.6052]
[1759561351324,2.21759729,4509.4,4509.2,3.0332]
[1759561351823,2.2176391,4509.3,4509.2,3.0332]
[1759561352922,2.2176391,4509.3,4509.2,2.6052]
[1759561353924,2.2176391,4509.3,4509.2,0.1112]
[1759561354124,2.3288391,4509.3,4509.2,2.494]
[1759561360008,4.6444,4509.9,4509.2,2.494]
[1759561360211,2.2176391,4509.3,4509.2,2.494]
[1759561370116,0.1112,4509.6,4509.2,2.494]
[1759561370350,0.002,4510.8,4509.3,0.45287639]
[1759561370351,2.21919055,4510.3,4509.3,0.45287639]
[1759561370554,0.002,4510.3,4509.8,0.1112]
[1759561370758,0.002,4510.3,4509.2,2.75462]
[1759561370759,0.002,4510.3,4510.2,2.21719657]
[1759561370943,0.002,4510.3,4510.2,4.9839155]
[1759561371143,0.002,4510.3,4510.2,5.39244354]
[1759561371651,0.002,4510.3,4510.2,10.52381354]
[1759561372755,0.002,4510.3,4510.2,10.06567554]
[1759561372954,0.002,4510.3,4510.2,11.45305104]
[1759561373260,0.002,4510.3,4510.2,11.20250407]
[1759561380676,0.002,4510.3,4510.2,11.31370407]
[1759561381684,0.002,4510.3,4510.2,9.04047207]
[1759561381881,0.002,4510.3,4510.2,12.17749507]
[1759561382584,0.002,4510.3,4510.2,12.81109507]
[1759561382794,1e-08,4510.6,4510.5,2.8506491]
[1759561382995,1e-08,4510.6,4510.5,18.15523559]
[1759561383282,1e-08,4510.6,4510.5,17.3549651]
[1759561383782,1e-08,4510.6,4510.5,22.9752061]
[1759561384087,1e-08,4510.6,4510.5,22.2566401]
[1759561384386,1e-08,4510.6,4510.5,23.66160908]
[1759561384782,1e-08,4510.6,4510.5,24.20701108]
[1759561384971,1e-08,4510.6,4510.5,13.06223708]
[1759561385887,1e-08,4510.6,4510.5,14.22465908]
[1759561386383,1e-08,4510.6,4510.5,14.47520605]
[1759561386759,1e-08,4510.6,4510.5,15.52369705]
[1759561387573,1e-08,4510.6,4510.5,15.7613896]
[1759561387764,1e-08,4510.6,4510.5,41.0524076]
[1759561387968,1e-08,4510.6,4510.5,40.9058426]
[1759561388284,1e-08,4510.6,4510.5,40.6755746]
[1759561388467,1e-08,4510.6,4510.5,38.8084026]
[1759561388975,1e-08,4510.6,4510.5,39.8307536]
[1759561389581,1e-08,4510.6,4510.5,39.2816126]
[1759561389776,1e-08,4510.6,4510.5,41.0524076]
[1759561389978,1e-08,4510.6,4510.5,39.1525006]
[1759561390892,1e-08,4510.6,4510.5,39.1284426]
[1759561391191,1e-08,4510.6,4510.5,29.7959896]
[1759561391392,1e-08,4510.6,4510.5,29.55829705]
[1759561391895,1e-08,4510.6,4510.5,29.45859108]
[1759561392081,1e-08,4510.6,4510.5,26.41736808]
[1759561392884,1e-08,4510.6,4510.5,27.96506708]
[1759561394017,1e-08,4510.6,4510.5,33.90400208]
[1759561394314,1e-08,4510.6,4510.5,33.70035008]
[1759561394618,1e-08,4510.6,4510.5,33.45174208]
[1759561394986,1e-08,4510.6,4510.5,33.86942708]
[1759561395180,1e-08,4510.6,4510.5,32.79749008]
[1759561395909,1e-08,4510.6,4510.5,33.08605008]
[1759561396244,1e-08,4510.6,4510.5,32.85832808]
[1759561396697,1e-08,4510.6,4510.5,31.90746208]
[1759561397217,1e-08,4510.6,4510.5,32.07797608]
[1759561397405,1e-08,4510.6,4510.5,33.66876896]
[1759561397793,1e-08,4510.6,4510.5,27.83851596]
[1759561397989,1e-08,4510.6,4510.5,19.74706596]
[1759561398195,1e-08,4510.6,4510.5,18.58697308]
[1759561398501,1e-08,4510.6,4510.5,19.36111096]
[1759561398922,1e-08,4510.6,4510.5,9.49886808]
[1759561399102,1e-08,4510.6,4510.5,7.00586808]
[1759561399290,0.43970001,4510.6,4510.5,2.5112]
[1759561399488,0.43970001,4510.6,4510.5,5.0042]
[1759561399725,0.43970001,4510.6,4510.5,7.2212491]
[1759561400345,1e-08,4510.6,4510.5,22.08611398]
[1759561400490,1e-08,4510.6,4510.5,31.64319008]
[1759561401005,1e-08,4510.6,4510.5,20.91064892]
[1759561401196,1e-08,4510.6,4510.5,19.32017308]
[1759561401396,1e-08,4510.6,4510.5,18.48976108]
[1759561403707,1e-08,4510.6,4510.5,14.83948208]
[1759561404130,1e-08,4510.6,4510.5,13.61112108]
[1759561404696,1e-08,4510.6,4510.5,19.95491808]
[1759561405446,1e-08,4510.6,4510.5,16.43800608]
[1759561405804,1e-08,4510.6,4510.5,16.43987408]
[1759561406214,1e-08,4510.6,4510.5,6.89466808]
[1759561406522,0.45220001,4510.6,4510.5,4.893]
[1759561407031,0.45220001,4510.6,4510.5,7.1110491]
[1759561407613,1e-08,4510.6,4510.5,7.1110491]
[1759561407859,1e-08,4510.6,4510.5,8.95305684]
[1759561408222,1e-08,4510.6,4510.5,7.36159607]
[1759561408422,1e-08,4510.6,4510.5,8.3649503]
[1759561408623,1e-08,4510.6,4510.5,8.11440333]
[1759561410962,1e-08,4510.6,4510.5,8.22560333]
[1759561412148,1e-08,4510.6,4510.5,6.00855423]
[1759561412352,1e-08,4510.6,4510.5,7.2222491]
[1759561413020,1e-08,4510.6,4510.5,2.5122]
[1759561413228,0.45960001,4510.6,4510.5,2.5122]
[1759561413427,0.45960001,4510.6,4510.5,5.0052]
[1759561415355,0.45960001,4510.6,4510.5,2.5122]
[1759561415560,0.45960001,4510.6,4510.5,5.0052]
[1759561415761,0.45960001,4510.6,4510.5,7.2222491]
[1759561416354,0.45960001,4510.6,4510.5,5.0052]
[1759561417252,1e-08,4510.6,4510.5,5.0052]
[1759561417570,1e-08,4510.6,4510.5,9.69613616]
[1759561419474,1e-08,4510.6,4510.5,8.81466594]
[1759561420681,1e-08,4510.6,4510.5,7.2222491]
[1759561421056,1e-08,4510.6,4510.5,8.81466594]
[1759561422463,1e-08,4510.6,4510.5,6.59761684]
[1759561422674,1e-08,4510.6,4510.5,0.1122]
[1759561422874,0.45960001,4510.6,4510.5,2.6052]
[1759561426791,1e-08,4510.6,4510.5,2.6052]
[1759561427169,0.45960001,4510.6,4510.5,2.6052]
[1759561427694,0.45960001,4510.6,4510.5,0.1122]
[1759561427894,0.45960001,4510.6,4510.5,2.6052]
[1759561429385,1e-08,4510.6,4510.5,2.6052]
[1759561432976,1e-08,4510.6,4510.5,0.1122]
[1759561433417,1e-08,4510.6,4510.5,2.6052]
[1759561434479,0.46570001,4510.6,4510.5,2.6052]
[1759561437388,0.46570001,4510.6,4510.5,0.1122]
[1759561437582,2.68269996,4510.6,4510.5,2.6052]
[1759561438617,0.46570001,4510.6,4510.5,2.494]
[1759561438781,2.68269996,4510.6,4510.5,2.494]
[1759561439985,2.21699996,4510.6,4510.5,2.494]
[1759561442302,1e-08,4510.6,4510.5,2.494]
[1759561442496,2.21699996,4510.6,4510.5,2.494]
[1759561442991,2.68269996,4510.6,4510.5,2.494]
[1759561443310,2.80836106,4510.6,4510.5,0.001]
[1759561443510,3.27406106,4510.6,4510.5,2.494]
[1759561447450,2.80836106,4510.6,4510.5,2.494]
[1759561448148,2.21699996,4510.6,4510.5,2.494]
[1759561449711,1e-08,4510.6,4510.5,2.494]
[1759561449932,2.21699996,4510.6,4510.5,2.494]
[1759561452446,1e-08,4510.6,4510.5,2.9361]
[1759561453314,2.21699996,4510.6,4510.5,2.9361]
[1759561453513,1e-08,4510.6,4510.5,2.9361]
[1759561454451,2.21699996,4510.6,4510.5,2.9361]
[1759561454649,2.21699996,4510.6,4510.5,2.494]
[1759561455018,1e-08,4510.6,4510.5,2.494]
[1759561455243,2.21699996,4510.6,4510.5,2.494]
[1759561458058,1e-08,4510.6,4510.5,2.494]
[1759561458935,2.21699996,4510.6,4510.5,2.494]
[1759561460456,1e-08,4510.6,4510.5,2.494]
[1759561461141,2.21699996,4510.6,4510.5,2.494]
[1759561462427,1e-08,4510.6,4510.5,2.494]
[1759561463166,2.21699996,4510.6,4510.5,2.494]
[1759561463464,1e-08,4510.6,4510.5,2.494]
[1759561464064,1e-08,4510.6,4510.5,2.9319]
[1759561464426,2.21699996,4510.6,4510.5,2.494]
[1759561464837,1e-08,4510.6,4510.5,2.494]
[1759561465869,1e-08,4510.6,4510.5,2.9319]
[1759561466073,1e-08,4510.6,4510.5,3.34741]
[1759561466786,1e-08,4510.6,4510.5,3.36958049]
[1759561466926,1e-08,4510.6,4510.5,5.58662959]
[1759561467123,1e-08,4510.6,4510.5,5.5644591]
[1759561468486,1e-08,4510.6,4510.5,3.34741]
[1759561468692,1e-08,4510.6,4510.5,3.36958049]
[1759561469081,1e-08,4510.6,4510.5,5.58662959]
[1759561469277,1e-08,4510.6,4510.5,3.34741]
[1759561469591,1e-08,4510.6,4510.5,3.36958049]
[1759561470482,1e-08,4510.6,4510.5,5.58662959]
[1759561470682,1e-08,4510.6,4510.5,5.5644591]
[1759561472397,1e-08,4510.6,4510.5,3.34741]
[1759561472688,1e-08,4510.6,4510.5,3.36958049]
[1759561473854,1e-08,4510.6,4510.5,3.34741]
[1759561474054,1e-08,4510.6,4510.5,3.0431]
[1759561475093,1e-08,4510.6,4510.5,30.84367762]
[1759561475291,0.002,4510.7,4510.6,29.47421795]
[1759561475477,0.002,4511.1,4510.8,0.6336]
[1759561475681,0.01,4513.9,4511.2,2.21670508]
[1759561475993,0.01,4513.9,4511.9,2.21636117]
[1759561475994,0.09868147,4512.9,4511.9,2.21636117]
[1759561476166,0.01,4512.9,4511.9,7.65306117]
[1759561476367,0.01,4512.9,4511.9,18.13420614]
[1759561476565,0.01,4512.9,4511.9,18.56897988]
[1759561476867,0.01,4512.9,4511.9,19.40353872]
[1759561477190,0.01,4512.9,4511.9,18.12958072]
[1759561477365,0.01,4512.9,4511.9,12.23467341]
[1759561477578,0.01,4512.9,4511.9,11.98412644]
[1759561478413,0.01,4512.9,4511.9,10.39664675]
[1759561479275,0.4565,4512.9,4511.9,10.39664675]
[1759561480602,0.4465,4512.7,4511.9,9.96414675]
[1759561481108,0.4465,4512.7,4511.9,10.39664675]
[1759561482837,0.4565,4512.9,4511.9,10.39664675]
[1759561485331,0.4565,4512.9,4511.9,10.89664675]
[1759561489110,1.002,4512.0,4511.9,10.89664675]
[1759561491427,1.002,4512.0,4511.9,12.01848627]
[1759561491631,1.002,4512.0,4511.9,33.83138927]
[1759561491959,1.002,4512.0,4511.9,35.96599227]
[1759561492325,1.002,4512.0,4511.9,35.97153127]
[1759561493062,1.002,4512.0,4511.9,35.72630727]
[1759561493420,1.002,4512.0,4511.9,34.51578527]
[1759561493620,1.002,4512.0,4511.9,34.27809272]
[1759561493832,1.002,4512.0,4511.9,34.94895189]
[1759561494051,1.002,4512.0,4511.9,36.92425934]
[1759561494258,1.002,4512.0,4511.9,35.66148934]
[1759561494477,1.002,4512.0,4511.9,35.07019034]
[1759561494647,1.002,4512.0,4511.9,34.40421434]
[1759561495476,1.002,4512.0,4511.9,34.67703934]
[1759561495695,1.002,4512.0,4511.9,34.23269134]
[1759561495876,1.002,4512.0,4511.9,14.46560337]
[1759561496074,1.002,4512.0,4511.9,11.09674675]
[1759561497780,1.002,4512.0,4511.9,11.54274675]
[1759561498086,1.002,4512.0,4511.9,11.09674675]
[1759561500044,1.002,4512.0,4511.9,14.48715575]
[1759561500473,1.002,4512.0,4511.9,13.31383175]
[1759561500780,1.002,4512.0,4511.9,11.09674675]
[1759561503176,1.002,4512.0,4511.9,10.46314675]
[1759561503498,1.4688,4512.0,4511.9,9.79810501]
[1759561503652,1.4688,4512.0,4511.9,2.68974384]
[1759561503858,1.4688,4512.0,4511.9,3.1032]
[1759561504762,1.4688,4512.0,4511.9,5.31956117]
[1759561505064,1.4688,4512.0,4511.9,3.1032]
[1759561506191,1.002,4512.0,4511.9,5.31956117]
[1759561506688,1.002,4512.0,4511.9,3.1032]
[1759561506905,1.4688,4512.0,4511.9,3.1032]
[1759561507065,1.4688,4512.0,4511.9,0.6112]
[1759561507394,1.4688,4512.0,4511.9,3.1032]
[1759561508792,1.4688,4512.0,4511.9,0.6112]
[1759561508995,1.4688,4512.0,4511.9,3.1032]
[1759561509319,1.002,4512.0,4511.9,2.6032]
[1759561511294,1.4688,4512.0,4511.9,2.6032]
[1759561513564,1.002,4512.0,4511.9,2.6032]
[1759561519466,1.4688,4512.0,4511.9,2.6032]
[1759561519870,1.002,4512.0,4511.9,2.6032]
[1759561521926,1.4594,4512.0,4511.9,2.6032]
[1759561522782,1.002,4512.0,4511.9,0.1112]
[1759561522993,3.67571205,4512.0,4511.9,2.6032]
[1759561524116,4.26490745,4512.0,4511.9,0.1112]
[1759561524319,2.21636117,4511.9,4511.8,0.001]
[1759561524496,2.21636117,4511.9,4511.8,2.493]
[1759561524828,3.33300803,4511.9,4511.8,2.493]
[1759561531061,0.65924686,4511.9,4511.8,2.493]
[1759561531266,1.002,4512.0,4511.8,2.493]
[1759561531424,2.21636117,4511.9,4511.8,2.493]
[1759561534334,2.68056117,4511.9,4511.8,2.493]
[1759561536070,2.21636117,4511.9,4511.8,2.493]
[1759561539336,2.68056117,4511.9,4511.8,0.001]
[1759561539569,3.281566,4511.9,4511.8,1.748]
[1759561539880,3.281566,4511.9,4511.8,2.494]
[1759561541983,2.817366,4511.9,4511.8,2.494]
[1759561542183,1.002,4512.0,4511.8,2.494]
[1759561542484,2.32756117,4511.9,4511.8,2.494]
[1759561544775,6.51756117,4511.9,4511.8,2.494]
[1759561556503,6.51956117,4511.9,4511.8,2.494]
[1759561561970,2.32956117,4511.9,4511.8,2.494]
[1759561566986,2.99484035,4511.9,4511.8,2.494]
[1759561568470,2.99484035,4511.9,4511.8,2.954]
[1759561570471,2.99484035,4511.9,4511.8,2.494]
[1759561570654,0.66727918,4511.9,4511.8,2.954]
[1759561570854,2.88364035,4511.9,4511.8,2.954]
[1759561586605,2.88364035,4511.9,4511.8,0.001]
[1759561586804,3.34704035,4511.9,4511.8,2.494]
[1759561587909,2.88364035,4511.9,4511.8,2.494]
[1759561588612,2.88364035,4511.9,4511.8,0.001]
[1759561588820,3.34494035,4511.9,4511.8,2.494]
[1759561590326,2.88364035,4511.9,4511.8,2.494]
[1759561591533,0.66727918,4511.9,4511.8,2.494]
[1759561592030,2.88364035,4511.9,4511.8,2.494]
[1759561595435,0.66727918,4511.9,4511.8,2.494]
[1759561595736,2.88364035,4511.9,4511.8,2.494]
[1759561602533,3.34494035,4511.9,4511.8,2.494]
[1759561603365,3.55108124,4511.9,4511.8,0.001]
[1759561603541,3.55108124,4511.9,4511.8,2.494]
[1759561603542,4.01238124,4511.9,4511.8,2.494]
[1759561605170,4.01238124,4511.9,4511.8,2.994]
[1759561607366,4.01238124,4511.9,4511.8,0.501]
[1759561607571,4.01238124,4511.9,4511.8,2.994]
[1759561610082,8.20238124,4511.9,4511.8,2.994]
[1759561610287,8.20238124,4511.9,4511.8,0.501]
[1759561610474,8.20238124,4511.9,4511.8,2.994]
[1759561611295,8.20238124,4511.9,4511.8,0.501]
[1759561611501,8.20238124,4511.9,4511.8,2.994]
[1759561612085,2.21655768,4511.5,4511.4,0.001]
[1759561612297,9.06566197,4511.5,4511.4,0.001]
[1759561612452,9.50016197,4511.5,4511.4,0.001]
[1759561612877,10.16561381,4511.5,4511.4,0.001]
[1759561616092,10.79921381,4511.5,4511.4,0.001]
[1759561616291,12.32270815,4511.5,4511.4,0.001]
[1759561621185,7.98480386,4511.5,4511.4,0.001]
[1759561625174,6.91670386,4511.5,4511.4,0.001]
[1759561625415,0.66545184,4511.5,4511.4,0.4449]
[1759561625703,1.0,4514.0,4511.5,0.6336]
[1759561625907,1.0,4514.0,4511.8,0.6336]
[1759561626088,1.0,4514.0,4512.2,1.58747969]
[1759561626401,1.0,4514.0,4512.5,0.6336]
[1759561626697,1.0,4514.0,4512.7,0.6336]
[1759561626910,1.0,4514.0,4513.3,2.21562681]
[1759561627202,1.0,4514.0,4513.4,2.51515624]
[1759561627660,1.0,4514.0,4513.4,4.73077776]
[1759561627993,1.0,4514.0,4513.4,4.70862152]
[1759561628203,1.0,4514.0,4513.4,2.493]
[1759561628402,1.0,4514.0,4513.5,0.2493]
[1759561628773,3.21533355,4514.0,4513.5,0.2493]
[1759561630502,1.0,4514.0,4513.5,0.2493]
[1759561631172,3.21534383,4514.0,4513.5,0.2493]
[1759561631674,2.22538211,4513.9,4513.5,0.2493]
[1759561632276,0.01,4513.9,4513.5,0.2493]
[1759561635353,2.22541588,4513.9,4513.8,0.1104]
[1759561635943,2.22541588,4513.9,4513.8,2.6024]
[1759561637143,2.33581588,4513.9,4513.8,2.492]
[1759561638956,2.21542824,4513.8,4511.9,1.5478636]
[1759561639164,2.21582096,4513.0,4512.9,0.1104]